bitfinex-derivatives/quotes_SOLF0:USTF0_20250816
["timestamp","ask_amount","ask_price","bid_price","bid_amount"]
[1755336600935,3.03,188.09,188.07,5.3134]
[1755336601932,3.03,188.08,188.07,5.3134]
[1755336602336,3.03,188.15,188.06,2.83637108]
[1755336602529,3.03,188.15,188.03,209.36114272]
[1755336602530,3.03,188.13,188.03,209.36114272]
[1755336602839,3.03,188.11,188.04,5.3143]
[1755336603037,3.03,188.09,188.04,5.3143]
[1755336603439,3.03,188.09,188.03,209.36114272]
[1755336604035,3.03,188.09,188.06,5.3135]
[1755336604341,3.03,188.09,188.03,209.36114272]
[1755336605134,3.03,188.09,188.07,5.3133]
[1755336605335,3.03,188.09,188.03,209.36114272]
[1755336605534,3.03,188.09,188.06,2.83637108]
[1755336605838,4.45345682,188.15,188.07,5.3133]
[1755336606037,4.22382812,188.14,188.07,5.3133]
[1755336606240,3.03,188.12,188.07,5.3133]
[1755336606436,3.03,188.1,188.08,5.3132]
[1755336609040,4.45345682,188.15,188.08,5.3132]
[1755336609341,3.03,188.13,188.08,5.3132]
[1755336609536,4.22480046,188.12,188.08,5.3132]
[1755336609741,3.03,188.11,188.08,5.3132]
[1755336611344,4.45345682,188.16,188.08,5.3132]
[1755336611537,3.03,188.15,188.12,2.83637108]
[1755336611743,3.03,188.2,188.12,2.83637108]
[1755336611942,3.03,188.18,188.15,5.3111]
[1755336612132,3.03,188.16,188.12,2.83637108]
[1755336612435,4.45345682,188.22,188.12,2.83637108]
[1755336612640,3.03,188.2,188.15,5.311]
[1755336612842,3.03,188.18,188.15,5.311]
[1755336613046,3.03,188.18,188.12,2.83637108]
[1755336613244,3.03,188.18,188.13,5.3115]
[1755336613441,3.03,188.21,188.15,2.83637108]
[1755336613634,3.03,188.19,188.15,2.83637108]
[1755336613841,3.03,188.19,188.16,5.3108]
[1755336614239,3.03,188.19,188.15,2.83637108]
[1755336614636,3.03,188.23,188.16,5.3108]
[1755336614842,3.03,188.21,188.16,5.3108]
[1755336615134,3.03,188.19,188.16,5.3108]
[1755336617342,3.03,188.24,188.18,2.83637108]
[1755336617540,3.03,188.22,188.18,2.83637108]
[1755336618846,3.0,188.26,188.18,2.83637108]
[1755336619144,3.0,188.24,188.18,2.83637108]
[1755336619345,3.0,188.22,188.19,5.3098]
[1755336619545,3.0,188.21,188.19,5.3098]
[1755336620144,4.45345682,188.28,188.2,5.3097]
[1755336620346,3.0,188.22,188.2,5.3097]
[1755336620743,3.0,188.27,188.15,2.83637108]
[1755336620945,3.0,188.25,188.15,2.83637108]
[1755336621245,3.0,188.23,188.15,2.83637108]
[1755336621542,4.22974996,188.24,188.15,2.83637108]
[1755336621543,3.0,188.21,188.15,8.14737108]
[1755336623345,3.0,188.21,188.16,5.3108]
[1755336624846,3.0,188.21,188.15,2.83637108]
[1755336625050,3.0,188.21,188.17,5.3106]
[1755336626649,3.0,188.21,188.15,2.83637108]
[1755336630849,3.0,188.21,188.15,8.14747108]
[1755336631156,3.0,188.21,188.15,2.83637108]
[1755336631956,3.0,188.21,188.17,5.3104]
[1755336632155,3.0,188.21,188.15,2.83637108]
[1755336635656,3.0,188.21,188.15,8.14737108]
[1755336636057,3.0,188.21,188.15,2.83637108]
[1755336639073,3.0,188.21,188.15,8.14727108]
[1755336639269,3.0,188.21,188.15,2.83637108]
[1755336640170,3.0,188.21,188.16,5.3107]
[1755336641872,3.0,188.21,188.17,5.3104]
[1755336642568,3.0,188.26,188.18,2.83637108]
[1755336642769,4.22277647,188.25,188.22,2.83637108]
[1755336642973,3.0,188.24,188.22,8.14537108]
[1755336643168,3.0,188.24,188.22,2.83637108]
[1755336643373,52.41337135,188.32,188.22,2.83637108]
[1755336643573,3.0,188.3,188.21,129.76]
[1755336643773,3.0,188.28,188.21,129.76]
[1755336643974,4.22299541,188.27,188.21,129.76]
[1755336644177,3.0,188.26,188.21,129.76]
[1755336648880,3.0,188.26,188.22,5.309]
[1755336649183,3.01,188.3,188.25,2.83637108]
[1755336650277,3.01,188.3,188.26,5.3079]
[1755336650682,3.01,188.29,188.25,2.83637108]
[1755336651080,3.01,188.29,188.26,5.3078]
[1755336651277,3.01,188.36,188.25,2.83637108]
[1755336651476,4.445731,188.37,188.21,176.59637108]
[1755336651477,7.455731,188.34,188.24,129.78]
[1755336651677,3.01,188.32,188.24,129.78]
[1755336651882,3.01,188.3,188.24,129.78]
[1755336652977,3.01,188.3,188.24,135.0884]
[1755336653285,3.01,188.3,188.24,129.78]
[1755336653478,3.01,188.28,188.24,129.78]
[1755336654472,3.01,188.32,188.24,129.78]
[1755336654677,3.01,188.3,188.24,129.78]
[1755336654881,4.22504516,188.29,188.24,129.78]
[1755336655077,3.01,188.28,188.24,129.78]
[1755336655384,3.01,188.32,188.24,129.78]
[1755336655585,3.01,188.3,188.24,129.78]
[1755336655786,4.22659904,188.29,188.24,129.78]
[1755336655979,3.01,188.28,188.24,129.78]
[1755336656176,2.83637108,188.37,188.24,129.78]
[1755336656177,3.01,188.27,188.24,129.78]
[1755336656380,3.01,188.33,188.25,2.83637108]
[1755336656581,3.01,188.31,188.25,2.83637108]
[1755336656781,4.2286659,188.3,188.25,2.83637108]
[1755336657091,4.2284333,188.29,188.24,129.78]
[1755336657383,4.22826244,188.28,188.24,129.78]
[1755336657582,3.01,188.27,188.24,129.78]
[1755336660687,3.01,188.27,188.18,2.83637108]
[1755336660985,3.01,188.25,188.18,132.71637108]
[1755336662090,3.01,188.25,188.19,5.3098]
[1755336662590,3.01,188.25,188.18,132.71637108]
[1755336663290,3.01,188.25,188.18,138.02637108]
[1755336663891,3.01,188.25,188.18,8.14637108]
[1755336664387,4.28593129,188.24,188.18,2.83637108]
[1755336664588,3.01,188.25,188.18,2.83637108]
[1755336664893,3.01,188.23,188.18,2.83637108]
[1755336667187,8.87810075,188.32,188.17,129.94]
[1755336667188,3.01,188.21,188.17,129.94]
[1755336667390,3.01,188.19,188.13,2.83637108]
[1755336667587,3.01,188.17,188.1,2.83637108]
[1755336672093,4.27973724,188.16,188.1,2.83637108]
[1755336672397,3.01,188.15,188.1,2.83637108]
[1755336673296,3.01,188.2,188.13,2.83637108]
[1755336673599,3.01,188.18,188.13,2.83637108]
[1755336674397,3.01,188.18,188.13,8.14787108]
[1755336674992,3.01,188.18,188.13,2.83637108]
[1755336676997,4.27670905,188.17,188.03,120.76477164]
[1755336677194,4.27616935,188.16,188.06,2.83637108]
[1755336677395,3.01,188.14,188.06,2.83637108]
[1755336677990,3.01,188.14,188.07,5.313]
[1755336681100,3.01,188.14,188.06,8.14977108]
[1755336682594,3.01,188.14,188.05,5.3137]
[1755336682800,2.84,188.12,187.99,356.92]
[1755336683002,4.26620687,188.11,188.0,2.83637108]
[1755336683197,2.84,188.1,188.02,5.3146]
[1755336683501,2.84,188.1,188.0,2.83637108]
[1755336684695,2.84,188.1,188.0,8.15147108]
[1755336686803,2.84,188.1,188.01,5.3149]
[1755336689309,2.84,188.1,188.02,5.3146]
[1755336689606,2.84,188.1,188.0,2.83637108]
[1755336689607,2.84,188.16,188.06,2.83637108]
[1755336689796,2.84,188.14,188.07,5.313]
[1755336692809,2.84,188.14,188.06,138.34977108]
[1755336694011,2.84,188.14,187.99,357.84538425]
[1755336694214,4.24776294,188.13,188.01,2.83637108]
[1755336694406,2.84,188.11,188.01,2.83637108]
[1755336696817,4.24962924,188.1,188.01,2.83637108]
[1755336697019,2.84,188.09,188.01,2.83637108]
[1755336700326,2.84,188.07,188.01,8.15117108]
[1755336701425,2.84,188.07,188.01,2.83637108]
[1755336705226,4.25896243,188.06,188.01,2.83637108]
[1755336705420,2.84,188.07,188.01,2.83637108]
[1755336705623,2.84,188.05,188.01,2.83637108]
[1755336706123,2.84,188.04,188.01,2.83637108]
[1755336707028,2.84,188.03,188.01,2.83637108]
[1755336708732,4.41739735,188.1,188.01,2.83637108]
[1755336708933,2.83,188.02,188.01,2.83637108]
[1755336711333,2.83,188.02,187.98,2.83637108]
[1755336711638,2.83,188.05,187.99,130.04]
[1755336711839,4.27102729,188.04,187.99,130.04]
[1755336712038,7.10102729,188.03,187.99,130.04]
[1755336712237,2.83,188.01,187.99,130.04]
[1755336714237,4.41739735,188.06,187.99,130.04]
[1755336714439,7.10361054,188.05,187.99,130.04]
[1755336714740,2.83,188.03,187.99,130.04]
[1755336714935,2.83,188.01,187.99,130.04]
[1755336719946,2.83,188.01,187.97,2.83637108]
[1755336720444,2.83,188.01,187.96,2.83637108]
[1755336720944,2.83,188.05,187.99,2.83637108]
[1755336721151,2.83,188.04,188.03,2.83637108]
[1755336721844,2.83,188.03,188.0,2.83637108]
[1755336722042,2.83,188.07,188.0,2.83637108]
[1755336722242,2.83,188.05,188.0,2.83637108]
[1755336722546,2.83,188.03,188.0,2.83637108]
[1755336723241,2.83,188.08,188.0,2.83637108]
[1755336723441,4.27695313,188.07,188.0,2.83637108]
[1755336723637,2.83,188.05,188.0,2.83637108]
[1755336723848,4.27695313,188.04,188.0,2.83637108]
[1755336724048,2.83,188.02,188.0,2.83637108]
[1755336724747,2.83,188.04,188.0,8.15147108]
[1755336725051,2.83,188.04,188.0,2.83637108]
[1755336725552,2.83,188.04,188.01,5.3147]
[1755336725743,2.83,188.08,188.01,5.3147]
[1755336725939,2.83,188.05,188.03,2.83637108]
[1755336727148,4.41739735,188.11,188.03,2.83637108]
[1755336727448,2.83,188.09,188.03,2.83637108]
[1755336727643,4.28277968,188.08,188.03,2.83637108]
[1755336727839,7.11277968,188.07,188.03,2.83637108]
[1755336728043,4.28277968,188.06,188.03,2.83637108]
[1755336728243,2.83,188.06,188.04,5.3141]
[1755336728444,4.41739735,188.11,188.03,2.83637108]
[1755336728649,2.83,188.09,188.08,2.83637108]
[1755336728852,7.11311268,188.09,188.05,2.83637108]
[1755336729151,2.83,188.06,188.05,2.83637108]
[1755336729342,2.83,188.08,188.05,8.15007108]
[1755336729547,2.83,188.08,188.05,2.83637108]
[1755336729747,7.24739735,188.12,188.05,2.83637108]
[1755336729947,2.83,188.1,188.05,2.83637108]
[1755336730146,2.83,188.07,188.05,2.83637108]
[1755336732252,2.83,188.07,188.05,8.15007108]
[1755336732853,2.83,188.12,188.05,8.15007108]
[1755336733049,4.26707365,188.11,188.05,8.15007108]
[1755336733242,2.83,188.08,188.06,5.3135]
[1755336733447,2.83,188.12,188.05,2.83637108]
[1755336733649,2.83,188.1,188.05,2.83637108]
[1755336733950,4.26680175,188.09,188.05,2.83637108]
[1755336734252,2.83,188.07,188.05,2.83637108]
[1755336736242,2.83,188.06,188.02,2.83637108]
[1755336736446,2.83,188.06,188.02,132.83637108]
[1755336736847,2.83,188.06,188.03,5.3143]
[1755336737051,2.83,188.11,188.03,5.3143]
[1755336737351,2.83,188.09,188.03,5.3143]
[1755336737551,2.83,188.07,188.03,5.3143]
[1755336738655,3.1,188.05,188.02,138.15097108]
[1755336738854,3.1,188.05,188.02,130.0]
[1755336741648,3.1,188.05,188.02,135.3146]
[1755336741844,3.1,188.04,188.02,135.3146]
[1755336742953,4.41739735,188.1,188.02,135.3146]
[1755336743152,3.1,188.03,188.02,135.3146]
[1755336743451,3.1,188.09,188.03,5.3144]
[1755336743656,4.41739735,188.1,188.02,130.0]
[1755336743657,3.1,188.07,188.02,130.0]
[1755336743852,3.1,188.05,188.02,130.0]
[1755336744052,3.1,188.04,188.03,5.3143]
[1755336744655,3.1,188.04,188.02,135.3146]
[1755336744855,3.1,188.03,188.02,135.3146]
[1755336747759,3.1,188.03,188.02,130.0]
[1755336760265,7.36656146,188.03,188.02,130.0]
[1755336761666,3.1,188.02,187.98,2.83637108]
[1755336761963,3.1,188.0,187.97,129.78]
[1755336762269,3.1,187.98,187.97,129.78]
[1755336762964,7.44165541,187.98,187.97,129.78]
[1755336763366,3.1,187.98,187.97,129.78]
[1755336766369,3.1,187.98,187.92,359.99637108]
[1755336766669,3.1,187.98,187.93,129.82]
[1755336767364,3.1,187.98,187.93,135.1372]
[1755336768672,3.1,187.98,187.94,5.3168]
[1755336771671,3.1,187.98,187.93,135.1372]
[1755336771872,3.1,187.98,187.93,129.82]
[1755336772772,3.1,187.98,187.93,135.1372]
[1755336775479,3.1,187.98,187.94,5.3169]
[1755336777982,3.1,187.98,187.95,5.3166]
[1755336778177,3.06,188.02,187.94,2.83637108]
[1755336778377,3.06,188.0,187.94,2.83637108]
[1755336778680,3.06,187.98,187.95,5.3165]
[1755336783081,3.06,188.03,187.96,5.3164]
[1755336783278,3.06,188.05,188.0,2.83637108]
[1755336783479,15.94,188.16,188.0,2.83637108]
[1755336783480,3.06,188.03,188.01,129.62]
[1755336783984,3.06,188.03,188.02,5.3147]
[1755336784176,3.06,188.03,188.01,129.62]
[1755336786690,3.06,188.08,188.01,129.62]
[1755336786890,3.06,188.06,188.01,129.62]
[1755336787090,3.06,188.04,188.01,129.62]
[1755336788386,3.06,188.03,188.01,129.62]
[1755336789091,3.06,188.07,188.01,129.62]
[1755336789292,4.31727168,188.06,188.01,129.62]
[1755336789493,3.06,188.04,188.01,129.62]
[1755336789792,3.06,188.03,188.01,129.62]
[1755336789995,4.41739735,188.09,188.01,134.9348]
[1755336790188,3.06,188.07,188.01,129.62]
[1755336790387,4.31727506,188.08,188.01,129.62]
[1755336790388,3.06,188.05,188.01,129.62]
[1755336790587,4.31732981,188.04,188.01,129.62]
[1755336790794,4.31725817,188.03,188.01,129.62]
[1755336791092,3.06,188.02,188.01,129.62]
[1755336793195,7.37926617,188.02,188.01,129.62]
[1755336793497,3.06,188.02,188.01,129.62]
[1755336799299,3.1,188.06,188.01,129.62]
[1755336799499,3.1,188.04,188.01,129.62]
[1755336799701,4.32246103,188.03,188.01,129.62]
[1755336799908,3.1,188.02,188.01,129.62]
[1755336800503,4.41739735,188.07,188.01,129.62]
[1755336800704,3.1,188.05,188.01,129.62]
[1755336800908,4.32228241,188.04,188.01,129.62]
[1755336801104,4.32228241,188.03,188.01,129.62]
[1755336801404,3.1,188.02,188.01,129.62]
[1755336809812,3.1,188.07,188.01,129.62]
[1755336810111,7.42231271,188.06,188.03,2.83637108]
[1755336810312,3.1,188.04,188.03,8.15057108]
[1755336811215,3.1,188.04,188.03,2.83637108]
[1755336811711,3.1,188.04,188.01,129.62]
[1755336811712,7.42083303,188.04,188.01,129.62]
[1755336811915,3.1,188.08,188.01,129.62]
[1755336812212,3.1,188.06,188.01,129.62]
[1755336812418,3.1,188.04,188.01,129.62]
[1755336812912,4.32103797,188.03,188.01,129.62]
[1755336813215,3.1,188.04,188.01,129.62]
[1755336813520,3.1,188.02,188.01,129.62]
[1755336813817,7.42110759,188.02,188.01,129.62]
[1755336814718,7.42110759,188.02,187.97,132.41637108]
[1755336814912,4.41739735,188.06,187.97,132.41637108]
[1755336815112,3.1,188.01,187.97,132.41637108]
[1755336816312,4.32962083,188.0,187.97,129.58]
[1755336816620,3.1,187.99,187.97,129.58]
[1755336817321,7.51739735,188.03,187.97,129.58]
[1755336817619,3.1,188.01,187.97,129.58]
[1755336817820,3.1,187.99,187.93,129.62]
[1755336818011,3.1,187.97,187.93,129.62]
[1755336818920,3.1,187.97,187.93,134.9372]
[1755336819221,4.32844628,187.96,187.93,134.9372]
[1755336819517,3.1,187.95,187.93,134.9372]
[1755336821221,3.1,187.95,187.93,129.62]
[1755336821516,4.41739735,188.01,187.93,129.62]
[1755336821717,3.1,187.94,187.93,129.62]
[1755336822520,3.1,187.94,187.93,134.9372]
[1755336822714,3.1,187.94,187.93,129.62]
[1755336823113,3.1,187.94,187.93,134.9372]
[1755336827228,3.1,188.0,187.93,132.45637108]
[1755336827521,8.87810075,188.06,187.96,2.83637108]
[1755336827522,3.1,187.98,187.96,2.83637108]
[1755336827725,3.1,187.98,187.97,134.9359]
[1755336828926,3.1,187.98,187.97,129.62]
[1755336834537,3.03,188.03,187.97,129.62]
[1755336834736,3.03,188.01,187.97,129.62]
[1755336834933,3.03,187.99,187.97,129.62]
[1755336837235,7.44739735,188.04,187.97,129.62]
[1755336837432,3.03,188.01,187.97,129.62]
[1755336837741,3.03,188.02,187.99,5.3154]
[1755336837944,3.03,188.02,187.97,129.62]
[1755336838136,3.03,188.02,188.0,5.3152]
[1755336838335,3.03,188.02,188.01,129.62]
[1755336838537,7.35517611,188.02,188.01,129.62]
[1755336840737,3.03,188.01,187.98,129.62]
[1755336842436,3.03,188.05,187.98,129.62]
[1755336842735,3.03,188.03,187.98,129.62]
[1755336842936,3.03,188.01,187.98,129.62]
[1755336843138,3.03,188.01,187.99,2.83637108]
[1755336844136,3.03,188.06,187.99,2.83637108]
[1755336844335,7.36069645,188.05,188.02,2.83637108]
[1755336844639,3.03,188.03,188.02,8.15107108]
[1755336847238,3.03,188.05,188.03,5.3144]
[1755336847442,3.03,188.08,188.03,129.6]
[1755336847644,3.03,188.08,188.05,2.83637108]
[1755336847848,3.03,188.08,188.07,5.3133]
[1755336848140,3.03,188.07,188.03,129.6]
[1755336849140,3.03,188.05,188.03,129.6]
[1755336849346,3.03,188.04,188.03,129.6]
[1755336852152,4.41739735,188.11,188.03,134.9144]
[1755336852353,3.03,188.06,188.03,134.9144]
[1755336852553,3.03,188.05,188.03,134.9144]
[1755336853153,4.41739735,188.11,188.03,134.9144]
[1755336853350,3.03,188.04,188.03,134.9144]
[1755336853550,3.03,188.05,188.04,5.314]
[1755336859457,2.91,188.09,188.03,129.6]
[1755336860558,2.91,188.09,188.03,134.9143]
[1755336860757,4.32248157,188.08,188.03,129.6]
[1755336861052,2.91,188.06,188.03,129.6]
[1755336862956,2.91,188.04,187.97,2.83637108]
[1755336863265,2.91,188.04,187.98,129.6]
[1755336864862,2.91,188.08,188.0,2.83637108]
[1755336865056,4.3230954,188.07,188.02,5.3145]
[1755336865256,2.91,188.06,188.03,129.88]
[1755336865757,2.91,188.1,188.05,5.3138]
[1755336865962,2.91,188.08,188.05,5.3138]
[1755336866158,2.91,188.06,188.05,5.3138]
[1755336868160,4.32523165,188.06,187.95,402.10545808]
[1755336868363,2.91,188.05,187.99,2.83637108]
[1755336868758,2.91,188.05,188.01,5.3148]
[1755336868958,2.91,188.05,188.02,129.92]
[1755336876367,2.91,188.03,188.02,135.2347]
[1755336877468,2.91,188.07,188.02,132.75637108]
[1755336877769,2.91,188.06,188.02,132.75637108]
[1755336878470,2.91,188.06,188.04,5.314]
[1755336883073,4.32947449,188.05,188.03,5.3143]
[1755336883372,2.91,188.06,188.03,5.3143]
[1755336883575,2.91,188.04,188.03,5.3143]
[1755336886168,2.91,188.03,188.02,129.92]
[1755336886373,7.2403736,188.03,188.02,129.92]
[1755336894476,7.2403736,188.03,188.02,135.2347]
[1755336898881,7.2403736,188.03,188.02,129.92]
[1755336901678,7.2403736,188.03,188.02,135.2347]
[1755336904172,2.91,188.03,188.02,135.2347]
[1755336904376,7.24011082,188.03,188.02,135.2347]
[1755336905379,7.24011082,188.03,188.02,129.92]
[1755336911987,7.24011082,188.03,188.02,135.2347]
[1755336914079,2.91,188.03,188.02,135.2347]
[1755336916087,4.44688077,188.08,188.02,135.2347]
[1755336916295,4.33237818,188.07,188.03,5.3143]
[1755336916488,3.06,188.05,188.03,5.3143]
[1755336916687,7.39237818,188.04,188.03,5.3143]
[1755336919789,4.33237818,188.04,188.02,135.2345]
[1755336919985,3.0,188.03,188.02,135.2345]
[1755336922598,3.0,188.03,188.02,137.05759567]
[1755336924397,7.33433221,188.03,188.02,137.05759567]
[1755336935502,3.0,188.06,188.02,131.74309567]
[1755336935699,3.0,188.06,188.05,1.82309567]
[1755336936003,3.0,188.06,188.05,131.38309567]
[1755336936204,61.07704069,188.11,188.06,3.0]
[1755336936399,61.07704069,188.11,188.09,1.82309567]
[1755336936602,61.07704069,188.11,188.1,129.56]
[1755336937095,56.63015992,188.11,188.1,129.56]
[1755336937908,56.63015992,188.11,188.1,120.17]
[1755336938211,56.63015992,188.11,188.1,120.04]
[1755336938412,56.63015992,188.11,188.08,129.56]
[1755336938909,56.63015992,188.11,188.08,132.56]
[1755336941908,56.63015992,188.11,188.09,3.0]
[1755336947321,4.31117009,188.1,188.09,3.0]
[1755336951520,4.31117009,188.1,188.09,4.82309567]
[1755336951727,672.16,188.26,188.09,4.82309567]
[1755336951728,4.44688077,188.17,188.1,2.97]
[1755336952023,4.3100075,188.16,188.13,2.97]
[1755336952218,4.3100075,188.15,188.13,2.97]
[1755336952522,4.3100075,188.14,188.13,2.97]
[1755336954119,4.3100075,188.14,188.13,8.2816]
[1755336960121,4.44688077,188.18,188.13,8.2816]
[1755336960324,4.30193806,188.17,188.14,2.97]
[1755336960525,4.30193806,188.16,188.14,2.97]
[1755336960823,4.30193806,188.15,188.14,2.97]
[1755336962026,4.30193806,188.15,188.1,132.45]
[1755336962330,1.82309567,188.13,188.11,2.97]
[1755336962529,4.30193806,188.12,188.11,2.97]
[1755336964135,4.30193806,188.12,188.08,129.48]
[1755336964432,4.30193806,188.11,188.09,2.97]
[1755336964631,1.82309567,188.13,188.1,2.97]
[1755336964930,4.30470566,188.12,188.1,2.97]
[1755336965132,4.30470566,188.11,188.1,2.97]
[1755336974437,4.30470566,188.11,188.08,129.48]
[1755336974735,4.30470566,188.1,188.08,132.45]
[1755336974937,4.30470566,188.09,188.08,2.97]
[1755336975129,6.12780133,188.09,188.05,2.97]
[1755336975334,4.30470566,188.08,188.05,2.97]
[1755336975533,4.30470566,188.07,188.06,8.2833]
[1755336975729,4.30852074,188.07,188.06,8.2833]
[1755336976439,4.30852074,188.07,188.06,2.97]
[1755336978539,4.30852074,188.07,188.06,8.2835]
[1755336983445,4.45082935,188.12,188.08,3.08]
[1755336983645,4.31120782,188.11,188.08,3.08]
[1755336983846,4.31120782,188.1,188.08,3.08]
[1755336984146,4.31120782,188.09,188.08,3.08]
[1755336984947,4.31120782,188.09,188.05,1.82309567]
[1755336985245,6.27392502,188.11,188.06,3.08]
[1755336985246,4.31120782,188.08,188.06,3.08]
[1755336985547,4.31120782,188.07,188.06,3.08]
[1755336992656,4.31120782,188.07,188.05,1.82309567]
[1755336992855,4.30803416,188.06,188.05,3.08]
[1755336999450,4.30803416,188.06,188.05,10.21699567]
[1755337002564,1.82309567,188.14,188.08,3.08]
[1755337002565,4.45082935,188.12,188.08,3.08]
[1755337002759,4.31472969,188.11,188.08,1.82309567]
[1755337002960,4.31472969,188.1,188.09,3.08]
[1755337008969,4.31472969,188.1,188.03,134.25309567]
[1755337009167,8.7736983,188.09,188.04,2.97]
[1755337009364,4.31472969,188.08,188.04,2.97]
[1755337009564,4.31472969,188.07,188.04,2.97]
[1755337009764,4.31472969,188.06,188.04,2.97]
[1755337009966,4.31472969,188.05,188.04,2.97]
[1755337017171,4.31472969,188.05,188.04,8.2841]
[1755337019474,4.31472969,188.05,188.04,2.97]
[1755337020575,4.31472969,188.05,188.04,8.2842]
[1755337021874,4.45896861,188.1,188.07,5.3132]
[1755337022067,4.32583103,188.09,188.08,4.79309567]
[1755337022584,4.32583103,188.09,188.08,10.10609567]
[1755337022980,4.32583103,188.09,188.08,4.79309567]
[1755337025289,4.32583103,188.09,188.08,2.97]
[1755337025788,8.78479964,188.09,188.06,132.39]
[1755337025992,4.32583103,188.08,188.06,132.39]
[1755337026178,4.45896861,188.09,188.06,132.39]
[1755337026179,4.32583103,188.07,188.06,132.39]
[1755337026587,4.32583103,188.07,188.06,2.97]
[1755337030383,4.32583103,188.07,188.06,4.79309567]
[1755337032692,4.32583103,188.07,188.06,2.97]
[1755337034590,4.32583103,188.07,188.06,8.2836]
[1755337035188,4.32583103,188.07,188.06,2.97]
[1755337038500,4.32583103,188.07,188.06,8.2836]
[1755337052603,4.32583103,188.07,188.06,10.10626688]
[1755337054907,65.10273006,188.15,188.1,3.01]
[1755337055108,60.64376145,188.15,188.1,129.36]
[1755337055306,65.10273006,188.15,188.11,4.83266688]
[1755337055507,65.10273006,188.15,188.1,132.37]
[1755337055708,65.10273006,188.15,188.11,3.01]
[1755337055910,65.10273006,188.15,188.12,3.01]
[1755337057611,65.10273006,188.15,188.13,3.01]
[1755337057809,65.10273006,188.15,188.11,1.82266688]
[1755337058009,65.10273006,188.15,188.12,3.01]
[1755337058312,65.10273006,188.15,188.12,5.3119]
[1755337058507,65.10273006,188.15,188.14,3.01]
[1755337058710,65.10273006,188.15,188.11,3.01]
[1755337061413,60.64376145,188.15,188.11,3.01]
[1755337064112,65.10273006,188.15,188.11,3.01]
[1755337064311,60.64376145,188.15,188.11,3.01]
[1755337064812,65.10273006,188.15,188.11,3.01]
[1755337066919,4.30655324,188.14,188.11,3.01]
[1755337067116,4.30655324,188.13,188.11,3.01]
[1755337067315,4.30655324,188.12,188.11,3.01]
[1755337074019,4.30655324,188.12,188.11,1.82266688]
[1755337074219,4.30655324,188.12,188.11,4.92266688]
[1755337078720,4.30655324,188.12,188.11,3.1]
[1755337080327,4.30655324,188.12,188.11,4.92266688]
[1755337084827,4.30655324,188.12,188.11,3.1]
[1755337085023,4.30655324,188.12,188.11,4.92266688]
[1755337094341,4.30655324,188.12,188.07,5.3133]
[1755337094541,4.30655324,188.11,188.08,3.1]
[1755337094746,4.30655324,188.1,188.08,3.1]
[1755337094941,4.30655324,188.09,188.08,3.1]
[1755337098151,4.30655324,188.09,188.08,4.92266688]
[1755337098342,4.30655324,188.09,188.08,1.82266688]
[1755337098542,4.30655324,188.09,188.08,4.92266688]
[1755337106754,4.30655324,188.09,188.08,10.23576688]
[1755337112363,4.45896861,188.16,188.09,2.94]
[1755337112554,4.45896861,188.16,188.13,1.82266688]
[1755337112759,4.45896861,188.16,188.15,2.94]
[1755337113861,4.45896861,188.16,188.14,2.94]
[1755337114064,4.45896861,188.16,188.11,1.82266688]